fUSD/lending_fUSD_20260513
["ID","MTS","AMOUNT","RATE_DAILY","PERIOD"]
[422166790,1778643038000,-4892.44,0.00020548,2]
[422166850,1778643038000,-153.41,0.00023378,2]
[422166791,1778643038000,-4892.44,0.00020548,2]
[422166793,1778643038000,-158.60995306,0.0002083,2]
[422166794,1778643038000,-177.5,0.00020901,2]
[422166796,1778643038000,-578.0,0.00021,2]
[422166797,1778643038000,-164.23988985,0.00021,2]
[422166795,1778643038000,-3620.0,0.0002094,2]
[422166792,1778643038000,-2000.0,0.00020626,2]
[422166798,1778643038000,-157.0,0.00021,2]
[422166813,1778643038000,-160.309376,0.00022045,14]
[422166807,1778643038000,-406.0,0.00022,2]
[422166804,1778643038000,-578.0,0.00022,2]
[422166811,1778643038000,-206.648804,0.00022045,14]
[422166805,1778643038000,-450.0,0.00022,2]
[422166806,1778643038000,-170.9741284,0.00022,2]
[422166803,1778643038000,-5000.0,0.00021918,2]
[422166799,1778643038000,-406.0,0.00021,2]
[422166801,1778643038000,-177.5,0.00021896,2]
[422166800,1778643038000,-500.0,0.000214,2]
[422166802,1778643038000,-357.39352552,0.00021903,2]
[422166895,1778643039000,-496.38,0.00024733,2]
[422166894,1778643039000,-11377.62,0.00024721,2]
[422166892,1778643039000,-220.54,0.00024658,2]
[422166891,1778643039000,-221.17,0.00024658,2]
[422166890,1778643039000,-1000.0,0.00024658,2]
[422166887,1778643039000,-1760.77,0.00024584,2]
[422166889,1778643039000,-187.15,0.00024658,2]
[422166886,1778643039000,-496.38,0.00024566,2]
[422166885,1778643039000,-496.38,0.0002451,2]
[422166884,1778643039000,-231.82,0.00024439,2]
[422166893,1778643039000,-496.38,0.00024677,2]
[422166888,1778643039000,-496.38,0.00024622,2]
[422166896,1778643039000,-726.27589737,0.00024746,2]
[422166910,1778643039000,-496.38,0.00025179,2]
[422166898,1778643039000,-496.38,0.00024844,2]
[422166899,1778643039000,-177.5,0.00024882,2]
[422166900,1778643039000,-496.38,0.000249,2]
[422166901,1778643039000,-496.38,0.00024956,2]
[422166904,1778643039000,-418.48509992,0.00025,2]
[422166905,1778643039000,-496.38,0.00025011,2]
[422166903,1778643039000,-583.09652444,0.00025,2]
[422166902,1778643039000,-330.50441725,0.00025,2]
[422166907,1778643039000,-496.38,0.00025067,2]
[422166906,1778643039000,-565.88,0.00025047,2]
[422166909,1778643039000,-496.38,0.00025123,2]
[422166908,1778643039000,-357.39352552,0.00025112,2]
[422166881,1778643039000,-6368.21,0.00024174,2]
[422166897,1778643039000,-496.38,0.00024789,2]
[422166883,1778643039000,-507.0,0.00024397,2]
[422166852,1778643039000,-206.17,0.00023516,2]
[422166879,1778643039000,-2212.09,0.00024174,2]
[422166853,1778643039000,-190.31,0.00023607,2]
[422166855,1778643039000,-190.31,0.0002361,2]
[422166911,1778643039000,-2000.0,0.0002521,2]
[422166854,1778643039000,-253.75,0.00023607,2]
[422166856,1778643039000,-190.31,0.00023612,2]
[422166857,1778643039000,-206.17,0.00023614,2]
[422166859,1778643039000,-578.0,0.00024,2]
[422166858,1778643039000,-177.5,0.00023887,2]
[422166860,1778643039000,-500.0,0.00024,2]
[422166862,1778643039000,-1760.77,0.00024026,2]
[422166863,1778643039000,-500.0,0.00024173,2]
[422166866,1778643039000,-500.0,0.00024173,2]
[422166861,1778643039000,-406.0,0.00024,2]
[422166882,1778643039000,-3162.0,0.00024265,2]
[422166864,1778643039000,-500.0,0.00024173,2]
[422166867,1778643039000,-500.0,0.00024173,2]
[422166871,1778643039000,-500.0,0.00024173,2]
[422166870,1778643039000,-500.0,0.00024173,2]
[422166869,1778643039000,-505.20982406,0.00024173,2]
[422166868,1778643039000,-500.0,0.00024173,2]
[422166873,1778643039000,-500.0,0.00024173,2]
[422166875,1778643039000,-500.0,0.00024173,2]
[422166872,1778643039000,-872.15,0.00024173,2]
[422166877,1778643039000,-500.0,0.00024173,2]
[422166878,1778643039000,-434.49,0.00024174,2]
[422166874,1778643039000,-500.0,0.00024173,2]
[422166876,1778643039000,-500.0,0.00024173,2]
[422166880,1778643039000,-1574.93,0.00024174,2]
[422166865,1778643039000,-500.0,0.00024173,2]
[422166912,1778643039000,-496.38,0.00025234,2]
[422166851,1778643039000,-1760.77,0.00023467,2]
[422166915,1778643039000,-496.38,0.00025346,2]
[422166947,1778643039000,-700.0,0.00026207,2]
[422166949,1778643039000,-150.0,0.00026208,2]
[422166950,1778643039000,-150.0,0.00026208,2]
[422166948,1778643039000,-471.0,0.00026207,2]
[422166952,1778643039000,-150.0,0.00026208,2]
[422166951,1778643039000,-150.0,0.00026208,2]
[422166953,1778643039000,-150.0,0.00026208,2]
[422166954,1778643039000,-150.0,0.00026208,2]
[422166958,1778643039000,-155.2,0.0002625,2]
[422166957,1778643039000,-154.76,0.00026232,2]
[422166955,1778643039000,-150.0,0.00026208,2]
[422166956,1778643039000,-292.0,0.00026208,2]
[422166960,1778643039000,-155.2,0.00026268,7]
[422166959,1778643039000,-154.76,0.00026251,7]
[422166961,1778643039000,-418.72,0.00026269,2]
[422166962,1778643039000,-154.76,0.0002627,30]
[422166963,1778643039000,-418.72,0.00026285,7]
[422166964,1778643039000,-155.2,0.00026286,30]
[422166966,1778643039000,-426.47,0.0002629,2]
[422166965,1778643039000,-154.76,0.00026289,2]
[422166969,1778643039000,-714.03,0.00026304,2]
[422166968,1778643039000,-155.2,0.00026304,2]
[422166971,1778643039000,-154.76,0.00026308,7]
[422166970,1778643039000,-426.47,0.00026305,7]
[422166967,1778643039000,-418.72,0.00026301,2]
[422166973,1778643039000,-1386.7,0.00026316,2]
[422166974,1778643039000,-418.72,0.00026317,2]
[422166946,1778643039000,-700.0,0.00026207,2]
[422166943,1778643039000,-700.0,0.00026207,2]
[422166972,1778643039000,-507.0,0.00026315,4]
[422166945,1778643039000,-700.0,0.00026207,2]
[422166942,1778643039000,-700.0,0.00026207,2]
[422166916,1778643039000,-507.0,0.00025356,3]
[422166914,1778643039000,-496.38,0.0002529,2]
[422166917,1778643039000,-496.38,0.00025401,2]
[422166919,1778643039000,-1223.0,0.00025495,2]
[422166918,1778643039000,-496.38,0.00025457,2]
[422166920,1778643039000,-625.0,0.00025495,2]
[422166921,1778643039000,-1353.0,0.00025495,2]
[422166922,1778643039000,-496.38,0.00025513,2]
[422166924,1778643039000,-496.38,0.00025624,2]
[422166923,1778643039000,-496.38,0.00025569,2]
[422166925,1778643039000,-496.38,0.0002568,2]
[422166927,1778643039000,-150.98,0.0002571,2]
[422166926,1778643039000,-1743.0,0.000257,7]
[422166913,1778643039000,-1568.25291956,0.00025275,2]
[422166933,1778643039000,-1574.93,0.00025786,2]
[422166929,1778643039000,-1738.56875014,0.00025748,2]
[422166940,1778643039000,-700.0,0.00026207,2]
[422166934,1778643039000,-6368.21,0.00025786,2]
[422166938,1778643039000,-550.0,0.00026,2]
[422166939,1778643039000,-700.0,0.00026207,2]
[422166937,1778643039000,-1743.0,0.00026,7]
[422166941,1778643039000,-700.0,0.00026207,2]
[422166935,1778643039000,-1738.56875014,0.00025819,2]
[422166931,1778643039000,-434.49,0.00025786,2]
[422166936,1778643039000,-177.5,0.00025877,2]
[422166930,1778643039000,-500.0,0.00025785,2]
[422166944,1778643039000,-700.0,0.00026207,2]
[422166928,1778643039000,-496.44946358,0.00025736,2]
[422166932,1778643039000,-2212.09,0.00025786,2]
[422167009,1778643040000,-300.0,0.00026373,2]
[422167005,1778643040000,-702.51,0.00026367,2]
[422167008,1778643040000,-300.0,0.00026373,2]
[422167011,1778643040000,-300.0,0.00026373,2]
[422167013,1778643040000,-300.0,0.00026373,2]
[422167012,1778643040000,-300.0,0.00026373,2]
[422167010,1778643040000,-300.0,0.00026373,2]
[422167014,1778643040000,-300.0,0.00026373,2]
[422167015,1778643040000,-257.0,0.00026373,2]
[422167016,1778643040000,-11377.62,0.00026374,7]
[422167007,1778643040000,-300.0,0.00026373,2]
[422167026,1778643040000,-1416.37,0.0002639,7]
[422167019,1778643040000,-1416.37,0.00026378,2]
[422167020,1778643040000,-702.51,0.0002638,7]
[422167018,1778643040000,-155.2,0.00026376,7]
[422167021,1778643040000,-426.47,0.0002638,2]
[422167023,1778643040000,-1386.7,0.00026384,7]
[422167006,1778643040000,-1386.7,0.0002637,7]
[422167022,1778643040000,-418.72,0.00026381,7]
[422167028,1778643040000,-702.51,0.00026393,7]
[422167025,1778643040000,-714.03,0.00026389,2]
[422167024,1778643040000,-154.76,0.00026384,30]
[422167027,1778643040000,-5000.0,0.00026391,2]
[422167030,1778643040000,-426.47,0.00026395,7]
[422167029,1778643040000,-155.2,0.00026394,30]
[422167017,1778643040000,-714.03,0.00026375,7]
[422167002,1778643040000,-418.72,0.00026365,2]
[422166998,1778643040000,-714.03,0.00026361,7]
[422167004,1778643040000,-154.76,0.00026365,7]
[422167031,1778643040000,-1386.7,0.00026397,2]
[422166976,1778643040000,-426.47,0.0002632,2]
[422166975,1778643040000,-714.03,0.00026318,7]
[422166978,1778643040000,-154.76,0.00026327,30]
[422166983,1778643040000,-426.47,0.00026335,2]
[422166977,1778643040000,-155.2,0.00026322,7]
[422166982,1778643040000,-418.72,0.00026333,7]
[422166981,1778643040000,-714.03,0.00026332,2]
[422166979,1778643040000,-702.51,0.00026329,2]
[422166980,1778643040000,-1386.7,0.00026329,7]
[422166985,1778643040000,-702.51,0.00026341,7]
[422166984,1778643040000,-155.2,0.0002634,30]
[422166987,1778643040000,-1386.7,0.00026343,2]
[422166988,1778643040000,-1738.56875014,0.00026343,2]
[422166991,1778643040000,-154.76,0.00026346,2]
[422166992,1778643040000,-418.72,0.00026349,7]
[422166995,1778643040000,-702.51,0.00026354,2]
[422166990,1778643040000,-714.03,0.00026346,2]
[422166996,1778643040000,-1386.7,0.00026356,2]
[422166994,1778643040000,-1416.37,0.00026353,7]
[422166993,1778643040000,-426.47,0.0002635,7]
[422166997,1778643040000,-155.2,0.00026358,2]
[422167000,1778643040000,-1416.37,0.00026365,2]
[422166999,1778643040000,-500.0,0.00026365,2]
[422167001,1778643040000,-426.47,0.00026365,7]
[422167003,1778643040000,-500.0,0.00026365,2]
[422166986,1778643040000,-1416.37,0.00026341,2]
[422167032,1778643040000,-418.72,0.00026397,2]
[422167035,1778643040000,-154.76,0.00026403,2]
[422167066,1778643040000,-418.72,0.00026462,2]
[422167065,1778643040000,-714.03,0.00026461,7]
[422167068,1778643040000,-155.2,0.00026466,2]
[422167067,1778643040000,-1416.37,0.00026464,7]
[422167070,1778643040000,-426.47,0.0002647,2]
[422167069,1778643040000,-1386.7,0.00026466,7]
[422167071,1778643040000,-702.51,0.00026471,7]
[422167072,1778643040000,-714.03,0.00026475,2]
[422167073,1778643040000,-1416.37,0.00026476,7]
[422167075,1778643040000,-1386.7,0.00026479,2]
[422167076,1778643040000,-154.76,0.00026479,7]
[422167074,1778643040000,-418.72,0.00026478,7]
[422167063,1778643040000,-702.51,0.00026458,7]
[422167079,1778643040000,-426.47,0.00026485,7]
[422167080,1778643040000,-1416.37,0.00026489,2]
[422167081,1778643040000,-714.03,0.00026489,7]
[422167083,1778643040000,-418.72,0.00026494,2]
[422167082,1778643040000,-1386.7,0.00026493,7]
[422167085,1778643040000,-154.76,0.00026499,30]
[422167087,1778643040000,-1416.37,0.00026501,7]
[422167084,1778643040000,-702.51,0.00026497,7]
[422167089,1778643040000,-714.03,0.00026503,2]
[422167088,1778643040000,-155.2,0.00026503,30]
[422167086,1778643040000,-426.47,0.000265,2]
[422167091,1778643040000,-1386.7,0.00026507,2]
[422167033,1778643040000,-1416.37,0.00026402,7]
[422167078,1778643040000,-155.2,0.00026484,7]
[422167064,1778643040000,-154.76,0.0002646,2]
[422167077,1778643040000,-702.51,0.00026484,2]
[422167061,1778643040000,-1386.7,0.00026452,7]
[422167034,1778643040000,-714.03,0.00026403,7]
[422167062,1778643040000,-426.47,0.00026455,7]
[422167037,1778643040000,-426.47,0.0002641,2]
[422167036,1778643040000,-702.51,0.00026406,2]
[422167038,1778643040000,-1386.7,0.00026411,7]
[422167039,1778643040000,-155.2,0.00026412,2]
[422167040,1778643040000,-418.72,0.00026414,2]
[422167042,1778643040000,-714.03,0.00026418,2]
[422167041,1778643040000,-1416.37,0.00026415,2]
[422167043,1778643040000,-702.51,0.00026419,7]
[422167044,1778643040000,-154.76,0.00026422,7]
[422167047,1778643040000,-1416.37,0.00026427,7]
[422167046,1778643040000,-1386.7,0.00026425,2]
[422167045,1778643040000,-426.47,0.00026425,2]
[422167060,1778643040000,-1416.37,0.00026452,2]
[422167059,1778643040000,-155.2,0.00026448,30]
[422167048,1778643040000,-155.2,0.0002643,7]
[422167055,1778643040000,-154.76,0.00026441,30]
[422167057,1778643040000,-714.03,0.00026446,7]
[422167058,1778643040000,-418.72,0.00026446,7]
[422167054,1778643040000,-426.47,0.0002644,7]
[422167056,1778643040000,-702.51,0.00026445,2]
[422167051,1778643040000,-714.03,0.00026432,2]
[422167053,1778643040000,-1416.37,0.00026439,2]
[422167050,1778643040000,-702.51,0.00026432,2]
[422167049,1778643040000,-418.72,0.0002643,7]
[422167052,1778643040000,-1386.7,0.00026438,2]
[422167144,1778643041000,-500.0,0.00026936,2]
[422167138,1778643041000,-150.0,0.00026849,2]
[422167142,1778643041000,-171.11047084,0.00026927,2]
[422167139,1778643041000,-569.27740092,0.00026864,2]
[422167140,1778643041000,-177.5,0.00026873,2]
[422167137,1778643041000,-154.92,0.00026575,2]
[422167132,1778643041000,-155.32,0.00026575,2]
[422167136,1778643041000,-418.9,0.00026575,7]
[422167135,1778643041000,-1386.86,0.00026575,7]
[422167131,1778643041000,-1416.41,0.00026575,7]
[422167129,1778643041000,-702.65,0.00026575,7]
[422167145,1778643041000,-500.0,0.00026936,2]
[422167134,1778643041000,-714.06,0.00026575,7]
[422167147,1778643041000,-500.0,0.00026936,2]
[422167152,1778643041000,-500.0,0.00026936,2]
[422167141,1778643041000,-726.27589737,0.00026895,2]
[422167146,1778643041000,-500.0,0.00026936,2]
[422167149,1778643041000,-500.0,0.00026936,2]
[422167148,1778643041000,-500.0,0.00026936,2]
[422167150,1778643041000,-500.0,0.00026936,2]
[422167151,1778643041000,-500.0,0.00026936,2]
[422167154,1778643041000,-500.0,0.00026936,2]
[422167157,1778643041000,-500.0,0.00026936,2]
[422167156,1778643041000,-500.0,0.00026936,2]
[422167153,1778643041000,-500.0,0.00026936,2]
[422167155,1778643041000,-500.0,0.00026936,2]
[422167159,1778643041000,-500.0,0.00026936,2]
[422167124,1778643041000,-1386.7,0.00026561,2]
[422167143,1778643041000,-500.0,0.00026936,2]
[422167125,1778643041000,-702.51,0.00026562,2]
[422167093,1778643041000,-418.72,0.0002651,2]
[422167133,1778643041000,-426.65,0.00026575,7]
[422167158,1778643041000,-500.0,0.00026936,2]
[422167092,1778643041000,-702.51,0.0002651,2]
[422167094,1778643041000,-1416.37,0.00026513,2]
[422167096,1778643041000,-714.03,0.00026518,2]
[422167095,1778643041000,-426.47,0.00026515,2]
[422167100,1778643041000,-1386.7,0.0002652,2]
[422167104,1778643041000,-1416.37,0.00026526,2]
[422167102,1778643041000,-155.2,0.00026521,2]
[422167098,1778643041000,-154.76,0.00026518,2]
[422167103,1778643041000,-702.51,0.00026523,2]
[422167105,1778643041000,-418.72,0.00026526,7]
[422167109,1778643041000,-702.51,0.00026536,7]
[422167108,1778643041000,-1386.7,0.00026534,7]
[422167127,1778643041000,-1416.37,0.00026563,2]
[422167107,1778643041000,-714.03,0.00026532,7]
[422167110,1778643041000,-154.76,0.00026537,7]
[422167112,1778643041000,-155.2,0.00026539,7]
[422167113,1778643041000,-418.72,0.00026543,7]
[422167114,1778643041000,-426.47,0.00026545,7]
[422167111,1778643041000,-1416.37,0.00026538,7]
[422167115,1778643041000,-714.03,0.00026546,7]
[422167116,1778643041000,-1386.7,0.00026548,7]
[422167119,1778643041000,-154.76,0.00026556,30]
[422167120,1778643041000,-155.2,0.00026557,30]
[422167121,1778643041000,-418.72,0.00026559,2]
[422167118,1778643041000,-1416.37,0.0002655,7]
[422167123,1778643041000,-714.03,0.00026561,2]
[422167122,1778643041000,-426.47,0.0002656,2]
[422167106,1778643041000,-426.47,0.0002653,7]
[422167160,1778643041000,-500.0,0.00026936,2]
[422167117,1778643041000,-702.51,0.00026549,7]
[422167161,1778643041000,-500.0,0.00026936,2]
[422167198,1778643041000,-500.0,0.00026936,2]
[422167196,1778643041000,-500.0,0.00026936,2]
[422167197,1778643041000,-500.0,0.00026936,2]
[422167200,1778643041000,-509.26577516,0.00026936,2]
[422167199,1778643041000,-500.0,0.00026936,2]
[422167222,1778643041000,-500.0,0.00026936,2]
[422167201,1778643041000,-500.0,0.00026936,2]
[422167202,1778643041000,-500.0,0.00026936,2]
[422167204,1778643041000,-500.0,0.00026936,2]
[422167203,1778643041000,-500.0,0.00026936,2]
[422167206,1778643041000,-500.0,0.00026936,2]
[422167208,1778643041000,-500.0,0.00026936,2]
[422167205,1778643041000,-500.0,0.00026936,2]
[422167195,1778643041000,-3000.0,0.00026936,2]
[422167207,1778643041000,-500.0,0.00026936,2]
[422167209,1778643041000,-500.0,0.00026936,2]
[422167212,1778643041000,-500.0,0.00026936,2]
[422167211,1778643041000,-500.0,0.00026936,2]
[422167213,1778643041000,-500.0,0.00026936,2]
[422167214,1778643041000,-500.0,0.00026936,2]
[422167216,1778643041000,-500.0,0.00026936,2]
[422167215,1778643041000,-500.0,0.00026936,2]
[422167218,1778643041000,-500.0,0.00026936,2]
[422167220,1778643041000,-507.15627863,0.00026936,2]
[422167219,1778643041000,-500.0,0.00026936,2]
[422167217,1778643041000,-500.0,0.00026936,2]
[422167223,1778643041000,-500.0,0.00026936,2]
[422167221,1778643041000,-500.0,0.00026936,2]
[422167210,1778643041000,-500.0,0.00026936,2]
[422167194,1778643041000,-431.69745624,0.00026936,2]
[422167162,1778643041000,-502.56578458,0.00026936,2]
[422167191,1778643041000,-872.15,0.00026936,2]
[422167164,1778643041000,-500.0,0.00026936,2]
[422167163,1778643041000,-500.0,0.00026936,2]
[422167165,1778643041000,-500.0,0.00026936,2]
[422167167,1778643041000,-500.0,0.00026936,2]
[422167169,1778643041000,-500.0,0.00026936,2]
[422167170,1778643041000,-500.0,0.00026936,2]
[422167166,1778643041000,-500.0,0.00026936,2]
[422167174,1778643041000,-500.0,0.00026936,2]
[422167193,1778643041000,-500.0,0.00026936,2]
[422167168,1778643041000,-500.0,0.00026936,2]
[422167172,1778643041000,-500.0,0.00026936,2]
[422167173,1778643041000,-233.99417586,0.00026936,2]
[422167175,1778643041000,-500.0,0.00026936,2]
[422167177,1778643041000,-234.66857943,0.00026936,2]
[422167171,1778643041000,-500.0,0.00026936,2]
[422167178,1778643041000,-500.0,0.00026936,2]
[422167176,1778643041000,-500.0,0.00026936,2]
[422167190,1778643041000,-872.15,0.00026936,2]
[422167187,1778643041000,-872.15,0.00026936,2]
[422167189,1778643041000,-872.15,0.00026936,2]
[422167188,1778643041000,-872.15,0.00026936,2]
[422167181,1778643041000,-500.0,0.00026936,2]
[422167192,1778643041000,-500.0,0.00026936,2]
[422167183,1778643041000,-500.0,0.00026936,2]
[422167185,1778643041000,-500.0,0.00026936,2]
[422167180,1778643041000,-500.0,0.00026936,2]
[422167186,1778643041000,-872.15,0.00026936,2]
[422167182,1778643041000,-500.0,0.00026936,2]
[422167179,1778643041000,-608.0,0.00026936,2]
[422167184,1778643041000,-500.0,0.00026936,2]
[422167263,1778643042000,-200.0,0.00028319,2]
[422167268,1778643042000,-314.0,0.00028319,2]
[422167262,1778643042000,-200.0,0.00028319,2]
[422167265,1778643042000,-200.0,0.00028319,2]
[422167269,1778643042000,-357.39352552,0.00028321,2]
[422167259,1778643042000,-1568.25291956,0.00028194,2]
[422167260,1778643042000,-507.0,0.00028232,6]
[422167261,1778643042000,-200.0,0.00028319,2]
[422167258,1778643042000,-150.0,0.00028192,2]
[422167255,1778643042000,-600.0,0.00028,2]
[422167253,1778643042000,-2000.0,0.00027502,120]
[422167266,1778643042000,-200.0,0.00028319,2]
[422167267,1778643042000,-200.0,0.00028319,2]
[422167283,1778643042000,-150.0,0.00028583,2]
[422167264,1778643042000,-200.0,0.00028319,2]
[422167270,1778643042000,-184.57,0.00028493,2]
[422167272,1778643042000,-624.807,0.00028495,2]
[422167273,1778643042000,-1353.0,0.00028495,2]
[422167274,1778643042000,-503.40789207,0.00028535,2]
[422167275,1778643042000,-200.0,0.00028581,2]
[422167277,1778643042000,-200.0,0.00028581,2]
[422167278,1778643042000,-200.0,0.00028581,2]
[422167276,1778643042000,-200.0,0.00028581,2]
[422167281,1778643042000,-200.0,0.00028581,2]
[422167280,1778643042000,-200.0,0.00028581,2]
[422167279,1778643042000,-200.0,0.00028581,2]
[422167284,1778643042000,-185.0,0.00028583,2]
[422167250,1778643042000,-989.58,0.000274,2]
[422167271,1778643042000,-1223.0,0.00028495,2]
[422167256,1778643042000,-185.49,0.00028,2]
[422167240,1778643042000,-1500.0,0.00027397,2]
[422167257,1778643042000,-11377.62,0.00028028,7]
[422167282,1778643042000,-292.0,0.00028581,2]
[422167225,1778643042000,-500.0,0.00026936,2]
[422167226,1778643042000,-500.0,0.00026936,2]
[422167227,1778643042000,-1500000.0,0.00026937,2]
[422167224,1778643042000,-500.0,0.00026936,2]
[422167229,1778643042000,-199.0,0.00027,7]
[422167228,1778643042000,-1738.56875014,0.00026999,2]
[422167230,1778643042000,-214.91342137,0.00027,7]
[422167233,1778643042000,-188.58613926,0.00027297,2]
[422167232,1778643042000,-150.0,0.00027297,2]
[422167231,1778643042000,-507.0,0.00027273,5]
[422167235,1778643042000,-2000.0,0.00027377,7]
[422167234,1778643042000,-150.0,0.00027297,2]
[422167254,1778643042000,-500.0,0.000278,7]
[422167238,1778643042000,-500.0,0.00027397,2]
[422167237,1778643042000,-500.0,0.00027396,2]
[422167239,1778643042000,-150.0,0.00027397,2]
[422167242,1778643042000,-151.14608712,0.00027397,2]
[422167246,1778643042000,-4617.1,0.00027397,10]
[422167245,1778643042000,-5540.52,0.00027397,10]
[422167241,1778643042000,-2000.0,0.00027397,7]
[422167243,1778643042000,-300.0,0.00027397,2]
[422167244,1778643042000,-6648.62,0.00027397,10]
[422167248,1778643042000,-989.58,0.000274,2]
[422167247,1778643042000,-168.68,0.000274,7]
[422167249,1778643042000,-989.58,0.000274,2]
[422167251,1778643042000,-989.58,0.000274,2]
[422167252,1778643042000,-989.58,0.000274,2]
[422167236,1778643042000,-2000.0,0.00027387,7]
[422167286,1778643042000,-150.0,0.00028633,2]
[422167287,1778643042000,-150.0,0.00028633,2]
[422167288,1778643042000,-214.0,0.00028633,2]
[422167327,1778643042000,-150.0,0.00029999,2]
[422167321,1778643042000,-500.0,0.00029999,2]
[422167322,1778643042000,-542.97047867,0.00029999,2]
[422167323,1778643042000,-500.0,0.00029999,2]
[422167325,1778643042000,-621.54467443,0.00029999,2]
[422167329,1778643042000,-4999.0,0.0003,2]
[422167328,1778643042000,-150.0,0.00029999,2]
[422167330,1778643042000,-650.0,0.0003,2]
[422167331,1778643042000,-209.0,0.000301,120]
[422167333,1778643042000,-200.0,0.00030137,2]
[422167332,1778643042000,-500.0,0.00030137,2]
[422167335,1778643042000,-507.0,0.00030149,8]
[422167338,1778643042000,-500.0,0.00030314,30]
[422167319,1778643042000,-202.77628531,0.00029999,2]
[422167337,1778643042000,-500.0,0.00030314,30]
[422167336,1778643042000,-222.38,0.00030267,120]
[422167339,1778643042000,-500.0,0.00030314,30]
[422167340,1778643042000,-666.643,0.00030314,30]
[422167342,1778643042000,-626.0,0.00030581,30]
[422167341,1778643042000,-596.6755982,0.00030457,2]
[422167343,1778643042000,-153.0,0.00030621,30]
[422167345,1778643042000,-152.0,0.00030621,30]
[422167344,1778643042000,-151.0,0.00030621,30]
[422167346,1778643042000,-156.0,0.00030628,30]
[422167347,1778643042000,-154.0,0.00030628,30]
[422167348,1778643042000,-157.0,0.00030628,30]
[422167349,1778643042000,-406.0,0.00030628,30]
[422167350,1778643042000,-150.0,0.00030653,2]
[422167334,1778643042000,-360.79,0.00030137,2]
[422167320,1778643042000,-500.0,0.00029999,2]
[422167351,1778643042000,-278.0,0.00030653,2]
[422167318,1778643042000,-500.0,0.00029999,2]
[422167285,1778643042000,-150.0,0.00028633,2]
[422167290,1778643042000,-150.0,0.00028638,2]
[422167289,1778643042000,-150.0,0.00028638,2]
[422167294,1778643042000,-218.0,0.00028667,2]
[422167292,1778643042000,-150.0,0.00028667,2]
[422167293,1778643042000,-150.0,0.00028667,2]
[422167291,1778643042000,-170.0,0.00028638,2]
[422167295,1778643042000,-150.0,0.00028696,2]
[422167317,1778643042000,-254.49721517,0.00029999,2]
[422167296,1778643042000,-263.0,0.00028696,2]
[422167298,1778643042000,-250.0,0.00028697,2]
[422167300,1778643042000,-250.0,0.00028697,2]
[422167302,1778643042000,-250.0,0.00028697,2]
[422167299,1778643042000,-250.0,0.00028697,2]
[422167297,1778643042000,-250.0,0.00028697,2]
[422167303,1778643042000,-250.0,0.00028697,2]
[422167301,1778643042000,-250.0,0.00028697,2]
[422167315,1778643042000,-11377.62,0.00029682,7]